fUSD/lending_fUSD_20250618
["ID","MTS","AMOUNT","RATE_DAILY","PERIOD"]
[366476571,1750279836180,-224.171281,0.0002,2]
[366476572,1750279836190,-224.171281,0.0002,2]
[366476573,1750279836200,-224.171281,0.0002,2]
[366476574,1750279836209,-224.171281,0.0002,2]
[366476575,1750279836219,-224.171281,0.0002,2]
[366476576,1750279836229,-224.171281,0.0002,2]
[366476577,1750279836239,-224.171281,0.0002,2]
[366476578,1750279836248,-224.171281,0.0002,2]
[366476579,1750279836258,-224.171281,0.0002,2]
[366476580,1750279836268,-224.171281,0.0002,2]
[366476581,1750279836277,-224.171281,0.0002,2]
[366476582,1750279836287,-151.0,0.0002,2]
[366476583,1750279836297,-151.0,0.0002,2]
[366476584,1750279836306,-151.0,0.0002,2]
[366476585,1750279836315,-151.0,0.0002,2]
[366476586,1750279836326,-151.0,0.0002,2]
[366476587,1750279836336,-151.0,0.0002,2]
[366476588,1750279836346,-151.0,0.0002,2]
[366476589,1750279836356,-151.0,0.0002,2]
[366476590,1750279836366,-151.0,0.0002,2]
[366476591,1750279836376,-151.0,0.0002,2]
[366476592,1750279836386,-151.0,0.0002,2]
[366476593,1750279836395,-151.0,0.0002,2]
[366476594,1750279836405,-151.0,0.0002,2]
[366476595,1750279836415,-151.0,0.0002,2]
[366476596,1750279836424,-151.0,0.0002,2]
[366476597,1750279836433,-151.0,0.0002,2]
[366476598,1750279836443,-151.981364,0.0002,2]
[366476599,1750279836452,-151.0,0.0002,2]
[366476600,1750279836462,-151.0,0.0002,2]
[366476601,1750279836472,-151.0,0.0002,2]
[366476602,1750279836481,-151.0,0.0002,2]
[366476603,1750279836491,-151.0,0.0002,2]
[366476604,1750279836500,-151.0,0.0002,2]
[366476605,1750279836515,-151.0,0.0002,2]
[366476606,1750279836534,-151.0,0.0002,2]
[366476607,1750279836544,-151.0,0.0002,2]
[366476608,1750279836553,-151.0,0.0002,2]
[366476609,1750279836563,-158.073686,0.0002,2]
[366476610,1750279836572,-376.0,0.0002,2]
[366476611,1750279836581,-1509.9135,0.0002,2]
[366476612,1750279836591,-159.06097,0.0002,2]
[366476613,1750279836602,-151.0,0.0002,2]
[366476614,1750279836613,-159.0,0.0002,2]
[366476615,1750279836622,-151.0,0.0002,2]
[366476616,1750279836631,-158.061848,0.0002,2]
[366476617,1750279836641,-158.061848,0.0002,2]
[366476618,1750279836651,-158.061848,0.0002,2]
[366476619,1750279836661,-520.927972,0.0002,2]
[366476620,1750279836671,-520.927972,0.0002,2]
[366476621,1750279836680,-520.927972,0.0002,2]
[366476622,1750279836691,-158.061848,0.0002,2]
[366476623,1750279836700,-520.927972,0.0002,2]
[366476624,1750279836710,-158.061848,0.0002,2]
[366476625,1750279836719,-158.061848,0.0002,2]
[366476626,1750279836728,-158.061848,0.0002,2]
[366476627,1750279836738,-520.927972,0.0002,2]
[366476628,1750279836749,-520.927972,0.0002,2]
[366476629,1750279836759,-520.927972,0.0002,2]
[366476630,1750279836769,-158.061848,0.0002,2]
[366476631,1750279836779,-520.927972,0.0002,2]
[366476632,1750279836789,-158.061848,0.0002,2]
[366476633,1750279836799,-520.927972,0.0002,2]
[366476634,1750279836809,-158.061848,0.0002,2]
[366476635,1750279836818,-520.927972,0.0002,2]
[366476636,1750279836828,-158.061848,0.0002,2]
[366476637,1750279836838,-520.927972,0.0002,2]
[366476638,1750279836848,-158.061848,0.0002,2]
[366476639,1750279836857,-520.927972,0.0002,2]
[366476640,1750279836867,-158.061848,0.0002,2]
[366476641,1750279836877,-520.927972,0.0002,2]
[366476642,1750279836887,-520.927972,0.0002,2]
[366476643,1750279836897,-158.061848,0.0002,2]
[366476644,1750279836906,-151.0,0.0002,2]
[366476645,1750279836916,-151.0,0.0002,2]
[366476646,1750279836927,-151.0,0.0002,2]
[366476647,1750279836937,-209.962452,0.0002,2]
[366476648,1750279836947,-209.962452,0.0002,2]
[366476649,1750279836957,-237.0,0.0002,2]
[366476650,1750279836967,-209.962452,0.0002,2]
[366476651,1750279836976,-209.962452,0.0002,2]
[366476652,1750279836986,-957.954,0.0002,2]
[366476653,1750279836996,-209.962452,0.0002,2]
[366476654,1750279837006,-209.962452,0.0002,2]
[366476655,1750279837016,-209.962452,0.0002,2]
[366476656,1750279837026,-209.962452,0.0002,2]
[366476657,1750279837036,-209.962452,0.0002,2]
[366476658,1750279837046,-209.962452,0.0002,2]
[366476659,1750279837055,-209.962452,0.0002,2]
[366476660,1750279837064,-209.962452,0.0002,2]
[366476661,1750279837074,-209.962452,0.0002,2]
[366476662,1750279837083,-209.962452,0.0002,2]
[366476663,1750279837093,-320.223086,0.0002,2]
[366476664,1750279837103,-320.223086,0.0002,2]
[366476665,1750279837112,-320.223086,0.0002,2]
[366476666,1750279837122,-320.223086,0.0002,2]
[366476667,1750279837131,-320.223086,0.0002,2]
[366476668,1750279837141,-320.223086,0.0002,2]
[366476669,1750279837150,-320.223086,0.0002,2]
[366476670,1750279837160,-320.223086,0.0002,2]
[366476671,1750279837170,-320.223086,0.0002,2]
[366476672,1750279837180,-320.223086,0.0002,2]
[366476673,1750279837189,-320.223086,0.0002,2]
[366476674,1750279837199,-320.223086,0.0002,2]
[366476675,1750279837209,-151.0,0.0002,2]
[366476676,1750279837219,-151.0,0.0002,2]
[366476677,1750279837229,-320.223086,0.0002,2]
[366476678,1750279837239,-151.0,0.0002,2]
[366476679,1750279837249,-320.223086,0.0002,2]
[366476680,1750279837258,-151.0,0.0002,2]
[366476681,1750279837268,-151.0,0.0002,2]
[366476682,1750279837278,-151.0,0.0002,2]
[366476683,1750279837288,-151.0,0.0002,2]
[366476684,1750279837297,-151.0,0.0002,2]
[366476685,1750279837307,-151.0,0.0002,2]
[366476686,1750279837316,-151.0,0.0002,2]
[366476687,1750279837326,-153.32036,0.0002,2]
[366476688,1750279837336,-309.527481,0.0002,2]
[366476689,1750279837346,-309.527481,0.0002,2]
[366476690,1750279837355,-309.527481,0.0002,2]
[366476691,1750279837365,-309.527481,0.0002,2]
[366476692,1750279837374,-600.0,0.0002,2]
[366476693,1750279837384,-309.527481,0.0002,2]
[366476694,1750279837393,-309.527481,0.0002,2]
[366476695,1750279837402,-271.42857143,0.0002,2]
[366476696,1750279837412,-309.527481,0.0002,2]
[366476697,1750279837422,-328.57142857,0.0002,3]
[366476698,1750279837431,-309.527481,0.0002,2]
[366476699,1750279837441,-309.527481,0.0002,2]
[366476700,1750279837451,-271.42857143,0.0002,2]
[366476701,1750279837461,-309.527481,0.0002,2]
[366476702,1750279837471,-309.527481,0.0002,2]
[366476703,1750279837480,-309.527481,0.0002,2]
[366476704,1750279837489,-328.57142857,0.0002,3]
[366476705,1750279837500,-309.527481,0.0002,2]
[366476706,1750279837510,-309.527481,0.0002,2]
[366476707,1750279837521,-421.39866985,0.0002,3]
[366476708,1750279837531,-271.42857143,0.0002,2]
[366476709,1750279837540,-328.57142857,0.0002,3]
[366476710,1750279837550,-271.42857143,0.0002,2]
[366476711,1750279837560,-328.57142857,0.0002,3]
[366476712,1750279837570,-271.42857143,0.0002,2]
[366476713,1750279837580,-200.0,0.0002,2]
[366476714,1750279837590,-328.57142857,0.0002,3]
[366476715,1750279837601,-271.42857143,0.0002,2]
[366476716,1750279837611,-151.0,0.0002,2]
[366476717,1750279837620,-151.0,0.0002,2]
[366476718,1750279837630,-151.0,0.0002,2]
[366476719,1750279837639,-328.57142857,0.0002,3]
[366476720,1750279837649,-151.0,0.0002,2]
[366476721,1750279837658,-151.0,0.0002,2]
[366476722,1750279837668,-151.0,0.0002,2]
[366476723,1750279837678,-151.0,0.0002,2]
[366476724,1750279837687,-271.42857143,0.0002,2]
[366476725,1750279837697,-151.0,0.0002,2]
[366476726,1750279837707,-151.0,0.0002,2]
[366476727,1750279837716,-328.57142857,0.0002,3]
[366476728,1750279837726,-271.42857143,0.0002,2]
[366476729,1750279837735,-151.0,0.0002,2]
[366476730,1750279837746,-201.922189,0.0002,2]
[366476731,1750279837756,-328.57142857,0.0002,3]
[366476732,1750279837766,-271.42857143,0.0002,2]
[366476733,1750279837776,-328.57142857,0.0002,3]
[366476734,1750279837785,-271.42857143,0.0002,2]
[366476735,1750279837795,-328.57142857,0.0002,3]
[366476737,1750279837805,-271.42857143,0.0002,2]
[366476739,1750279837815,-328.57142857,0.0002,3]
[366476741,1750279837826,-271.42857143,0.0002,2]
[366476742,1750279837835,-328.57142857,0.0002,3]
[366476743,1750279837845,-271.42857143,0.0002,2]
[366476744,1750279837854,-328.57142857,0.0002,3]
[366476746,1750279837864,-271.42857143,0.0002,2]
[366476747,1750279837873,-328.57142857,0.0002,3]
[366476749,1750279837884,-151.0,0.0002,2]
[366476750,1750279837893,-271.42857143,0.0002,2]
[366476751,1750279837903,-151.0,0.0002,2]
[366476752,1750279837912,-151.0,0.0002,2]
[366476753,1750279837922,-151.0,0.0002,2]
[366476754,1750279837932,-151.0,0.0002,2]
[366476755,1750279837942,-151.0,0.0002,2]
[366476756,1750279837952,-328.57142857,0.0002,3]
[366476757,1750279837962,-254.617106,0.0002,2]
[366476758,1750279837972,-151.0,0.0002,2]
[366476759,1750279837981,-209.151241,0.0002,2]
[366476760,1750279837990,-271.42857143,0.0002,2]
[366476761,1750279838000,-328.57142857,0.0002,3]
[366476762,1750279838010,-219.67378353,0.0002,2]
[366476763,1750279838021,-265.92089586,0.0002,3]
[366476764,1750279838030,-151.0,0.0002,2]
[366476765,1750279838040,-151.0,0.0002,2]
[366476766,1750279838050,-151.0,0.0002,2]
[366476767,1750279838060,-151.0,0.0002,2]
[366476768,1750279838070,-151.0,0.0002,2]
[366476769,1750279838080,-151.0,0.0002,2]
[366476770,1750279838090,-265.73844,0.0002,2]
[366476771,1750279838100,-4000.0,0.0002,4]
[366476772,1750279838109,-151.0,0.0002,2]
[366476773,1750279838119,-151.0,0.0002,2]
[366476774,1750279838129,-151.0,0.0002,2]
[366476775,1750279838139,-151.0,0.0002,2]
[366476776,1750279838148,-151.0,0.0002,2]
[366476777,1750279838158,-151.0,0.0002,2]
[366476778,1750279838168,-292.711804,0.0002,2]
[366476779,1750279838178,-151.0,0.0002,2]
[366476780,1750279838190,-151.0,0.0002,2]
[366476781,1750279838203,-500.7192,0.0002,2]
[366476782,1750279838216,-151.0,0.0002,2]
[366476783,1750279838227,-151.0,0.0002,2]
[366476785,1750279838237,-151.0,0.0002,2]
[366476787,1750279838246,-151.0,0.0002,2]
[366476789,1750279838255,-151.0,0.0002,2]
[366476791,1750279838265,-151.0,0.0002,2]
[366476793,1750279838274,-151.0,0.0002,2]
[366476795,1750279838283,-253.321726,0.0002,2]
[366476797,1750279838292,-151.0,0.0002,2]
[366476799,1750279838301,-151.0,0.0002,2]
[366476801,1750279838311,-151.0,0.0002,2]
[366476803,1750279838320,-151.0,0.0002,2]
[366476805,1750279838330,-151.0,0.0002,2]
[366476807,1750279838339,-151.0,0.0002,2]
[366476809,1750279838348,-151.0,0.0002,2]
[366476811,1750279838357,-151.0,0.0002,2]
[366476813,1750279838367,-151.0,0.0002,2]
[366476815,1750279838376,-151.0,0.0002,2]
[366476817,1750279838385,-151.0,0.0002,2]
[366476819,1750279838394,-151.0,0.0002,2]
[366476821,1750279838403,-151.0,0.0002,2]
[366476823,1750279838412,-151.0,0.0002,2]
[366476825,1750279838421,-151.0,0.0002,2]
[366476827,1750279838429,-151.0,0.0002,2]
[366476829,1750279838438,-151.0,0.0002,2]
[366476831,1750279838447,-151.0,0.0002,2]
[366476833,1750279838456,-151.0,0.0002,2]
[366476834,1750279838465,-151.0,0.0002,2]
[366476836,1750279838474,-151.0,0.0002,2]
[366476838,1750279838483,-153.284088,0.0002,2]
[366476840,1750279838492,-151.0,0.0002,2]
[366476842,1750279838502,-168.0,0.00020003,2]
[366476844,1750279838511,-168.0,0.00020006,2]
[366476845,1750279838522,-168.0,0.00020006,2]
[366476846,1750279838531,-153.1874365,0.00020009,2]
[366476847,1750279838541,-9030.97889079,0.0002001,2]
[366476848,1750279838550,-4980.4649368,0.0002001,2]
[366476849,1750279838559,-5772.0,0.0002001,2]
[366476850,1750279838570,-2000.0,0.0002001,2]
[366476851,1750279838580,-151.0,0.0002001,2]
[366476852,1750279838590,-600.0,0.00020012,2]
[366476853,1750279838600,-2741.441671,0.0002002,2]
[366476854,1750279838610,-151.0,0.0002002,2]
[366476855,1750279838620,-151.0,0.0002002,2]
[366476856,1750279838629,-151.0,0.0002002,2]
[366476857,1750279838639,-151.0,0.0002002,2]
[366476858,1750279838648,-151.0,0.0002002,2]
[366476859,1750279838658,-168.0,0.00020074,2]
[366476860,1750279838668,-200.0,0.000201,2]
[366476861,1750279838678,-168.0,0.00020119,2]
[366476862,1750279838687,-1680.37239372,0.0002015,2]
[366476863,1750279838696,-158.061848,0.00020187,2]
[366476865,1750279838706,-158.061848,0.00020187,2]
[366476867,1750279838715,-320.223086,0.00020187,2]
[366476869,1750279838725,-320.223086,0.00020187,2]
[366476871,1750279838734,-151.0,0.00020187,2]
[366476873,1750279838744,-255.720498,0.00020187,2]
[366476875,1750279838755,-284.05,0.00020187,2]
[366476877,1750279838764,-7342.25908631,0.0002022,2]
[366476879,1750279838774,-151.0,0.0002022,2]
[366476880,1750279838783,-224.171281,0.0002022,2]
[366476883,1750279838792,-224.171281,0.0002022,2]
[366476885,1750279838802,-151.0,0.0002022,2]
[366476887,1750279838811,-520.927972,0.0002022,2]
[366476912,1750279839040,-520.927972,0.0002022,2]
[366476914,1750279839050,-209.962452,0.0002022,2]
[366476916,1750279839061,-209.962452,0.0002022,2]
[366476918,1750279839070,-151.0,0.0002022,2]
[366476920,1750279839080,-309.527481,0.0002022,2]
[366476922,1750279839089,-309.527481,0.0002022,2]
[366476924,1750279839099,-151.0,0.0002022,2]
[366476926,1750279839109,-168.0,0.00020223,2]
[366476928,1750279839118,-168.0,0.00020239,2]
[366476930,1750279839128,-151.0,0.0002024,2]
[366476932,1750279839138,-151.0,0.0002024,2]
[366476934,1750279839147,-168.0,0.0002024,2]
[366476936,1750279839157,-162.380719,0.00020274,2]
[366476938,1750279839167,-2642.28783777,0.00020389,2]
[366476940,1750279839177,-1076.08,0.00020389,2]
[366476942,1750279839187,-3411.4548971,0.0002041,30]
[366476944,1750279839196,-151.0,0.0002041,2]
[366476946,1750279839206,-151.0,0.0002041,2]
[366476948,1750279839216,-155.288906,0.0002041,2]
[366476950,1750279839225,-151.0,0.00020467,2]
[366476952,1750279839234,-3484.83571773,0.00020471,2]
[366476954,1750279839245,-1593.96,0.00020478,2]
[366476956,1750279839255,-461.73,0.00020478,2]
[366476958,1750279839265,-461.73,0.00020478,2]
[366476960,1750279839274,-461.73,0.00020478,2]
[366476963,1750279839284,-460.81,0.00020478,2]
[366476965,1750279839293,-658.75734465,0.00020486,3]
[366476966,1750279839303,-200.0,0.0002051,2]
[366476968,1750279839312,-231.353832,0.00020537,2]
[366476971,1750279839321,-185.5,0.00020548,2]
[366476973,1750279839331,-211.358107,0.00020548,2]
[366476974,1750279839341,-20815.25,0.00020548,2]
[366476976,1750279839350,-151.0,0.00020548,2]
[366476979,1750279839360,-246.641295,0.00020548,2]
[366476981,1750279839369,-246.641295,0.00020548,2]
[366476982,1750279839378,-151.0,0.00020548,2]
[366476985,1750279839387,-151.0,0.00020548,2]
[366476987,1750279839397,-215.0738,0.00020557,2]
[366476989,1750279839407,-201.0,0.0002059,7]
[366476990,1750279839416,-22009.51013663,0.000207,2]
[366476993,1750279839426,-5686.84,0.000207,2]
[366476995,1750279839436,-151.0,0.000207,2]
[366476996,1750279839445,-151.0,0.000207,2]
[366476998,1750279839455,-151.0,0.000207,2]
[366477000,1750279839464,-151.0,0.000207,2]
[366477002,1750279839474,-158.061848,0.000207,2]
[366477004,1750279839483,-158.061848,0.000207,2]
[366477006,1750279839493,-320.223086,0.000207,2]
[366477008,1750279839503,-320.223086,0.000207,2]
[366477010,1750279839513,-151.0,0.000207,2]
[366477012,1750279839528,-8033.72,0.00020822,2]
[366477014,1750279839538,-224.171281,0.00020822,2]
[366477016,1750279839548,-224.171281,0.00020822,2]
[366477018,1750279839558,-151.0,0.00020822,2]
[366477020,1750279839568,-151.0,0.00020822,2]
[366477023,1750279839578,-520.927972,0.00020822,2]
[366477024,1750279839587,-520.927972,0.00020822,2]
[366477026,1750279839597,-209.962452,0.00020822,2]
[366477029,1750279839607,-209.962452,0.00020822,2]
[366477031,1750279839617,-309.527481,0.00020822,2]
[366477033,1750279839626,-309.527481,0.00020822,2]
[366477035,1750279839636,-151.0,0.00020822,2]
[366477037,1750279839646,-151.0,0.00020822,2]
[366477039,1750279839655,-151.0,0.00020822,2]
[366477041,1750279839665,-168.3888056,0.00020822,2]
[366477043,1750279839674,-168.0,0.00020848,2]
[366477045,1750279839684,-970.0,0.00020888,2]
[366477047,1750279839694,-300.0,0.00020899,2]
[366477049,1750279839703,-44424.25412881,0.000209,30]
[366477051,1750279839713,-151.0,0.000209,2]
[366477053,1750279839722,-213.628488,0.000209,2]
[366477055,1750279839731,-151.0,0.000209,2]
[366477057,1750279839741,-246.641295,0.000209,2]
[366477059,1750279839752,-246.641295,0.000209,2]
[366477061,1750279839762,-151.0,0.000209,2]
[366477063,1750279839772,-249.55497,0.000209,2]
[366477065,1750279839782,-833.92080167,0.000209,30]
[366477068,1750279839791,-1100.0,0.000209,7]
[366477070,1750279839801,-2642.28783777,0.00020978,2]
[366477072,1750279839811,-1000.0,0.00020986,2]
[366477074,1750279839820,-20000.0,0.00021,2]
[366477076,1750279839830,-1159.48112532,0.00021,2]
[366477078,1750279839839,-191.36661067,0.00021,2]
[366477080,1750279839849,-200.0,0.00021,2]
[366477082,1750279839859,-2027.80508667,0.00021,2]
[366477085,1750279839868,-492.77555771,0.00021,2]
[366477089,1750279839879,-10000.0,0.00021,2]
[366477093,1750279839889,-151.0,0.00021,2]
[366477096,1750279839899,-151.0,0.00021,2]
[366477099,1750279839909,-151.0,0.00021,2]
[366477101,1750279839918,-151.0,0.00021,2]
[366477103,1750279839928,-151.0,0.00021,2]
[366477106,1750279839937,-224.171281,0.00021,2]
[366477109,1750279839947,-224.171281,0.00021,2]
[366477110,1750279839957,-151.0,0.00021,2]
[366477113,1750279839967,-255.04444,0.00021,2]
[366477116,1750279839977,-158.061848,0.00021,2]
[366477118,1750279839988,-520.927972,0.00021,2]
[366477120,1750279839998,-520.927962,0.00021,2]
[366477122,1750279840008,-158.061851,0.00021,2]
[366477124,1750279840017,-209.962452,0.00021,2]
[366477126,1750279840027,-209.962461,0.00021,2]
[366477128,1750279840036,-320.223086,0.00021,2]
[366477129,1750279840046,-320.223089,0.00021,2]
[366477132,1750279840056,-309.527481,0.00021,2]
[366477133,1750279840065,-309.527486,0.00021,2]
[366477135,1750279840075,-151.0,0.00021,2]
[366477137,1750279840084,-4000.0,0.00021,4]
[366477139,1750279840093,-151.0,0.00021,2]
[366477141,1750279840103,-74.47604445,0.00021,2]
[366477194,1750279840606,-76.52395555,0.00021,2]
[366477196,1750279840616,-213.681125,0.00021,2]
[366477198,1750279840626,-3484.83571773,0.00021051,2]
[366477200,1750279840635,-658.75734465,0.00021072,4]
[366477202,1750279840644,-168.0,0.00021087,2]
[366477204,1750279840654,-519.00861248,0.000211,10]
[366477206,1750279840663,-538.57,0.00021173,2]
[366477208,1750279840673,-168.0,0.00021249,2]
[366477210,1750279840683,-156.587,0.00021257,2]
[366477212,1750279840692,-1000.0,0.00021292,2]
[366477214,1750279840701,-16416.9,0.000213,2]
[366477216,1750279840711,-151.0,0.00021311,2]
[366477218,1750279840720,-246.641295,0.00021311,2]
[366477220,1750279840729,-246.641295,0.00021311,2]
[366477222,1750279840739,-151.0,0.00021311,2]
[366477224,1750279840749,-709.46,0.00021311,2]
[366477226,1750279840759,-150.0,0.00021369,2]
[366477228,1750279840769,-174.61919141,0.0002137,2]
[366477230,1750279840778,-481.07,0.0002143,2]
[366477232,1750279840787,-2642.28783777,0.00021567,2]
[366477234,1750279840797,-168.0,0.00021578,2]
[366477236,1750279840807,-931.97972064,0.0002163,2]
[366477238,1750279840819,-2552.85599709,0.0002163,2]
[366477240,1750279840829,-1500.0,0.00021644,2]
[366477242,1750279840838,-201.0,0.00021655,9]
[366477244,1750279840849,-233.074,0.00021658,2]
[366477247,1750279840859,-658.75734465,0.00021659,5]
[366477249,1750279840869,-168.0,0.0002177,2]
[366477251,1750279840879,-1000.0,0.00021773,2]
[366477253,1750279840888,-159.269979,0.000218,2]
[366477255,1750279840898,-151.0,0.000218,2]
[366477257,1750279840907,-151.0,0.000218,2]
[366477266,1750279840986,-151.0,0.000218,2]
[366477268,1750279840997,-151.0,0.000218,2]
[366477270,1750279841006,-23.82201096,0.00021818,2]
[366477272,1750279841017,-174.82830404,0.00021818,2]
[366477274,1750279841027,-168.0,0.00021856,2]
[366477276,1750279841037,-133.11136372,0.000219,2]
[366477279,1750279841048,-1072.56398073,0.000219,2]
[366477281,1750279841059,-794.32465555,0.000219,2]
[366477283,1750279841068,-151.137373,0.00021918,2]
[366477285,1750279841078,-151.137373,0.00021918,2]
[366477287,1750279841087,-151.137373,0.00021918,2]
[366477289,1750279841097,-151.137373,0.00021918,2]
[366477291,1750279841106,-151.137373,0.00021918,2]
[366477293,1750279841115,-151.137373,0.00021918,2]
[366477295,1750279841124,-151.137373,0.00021918,2]
[366477297,1750279841134,-151.137373,0.00021918,2]
[366477299,1750279841143,-151.137373,0.00021918,2]
[366477301,1750279841152,-151.137373,0.00021918,2]
[366477303,1750279841161,-151.137373,0.00021918,2]
[366477305,1750279841171,-151.137373,0.00021918,2]
[366477307,1750279841180,-151.137373,0.00021918,2]
[366477309,1750279841189,-151.137373,0.00021918,2]
[366477311,1750279841199,-151.137373,0.00021918,2]
[366477313,1750279841208,-151.137373,0.00021918,2]
[366477315,1750279841217,-151.137373,0.00021918,2]
[366477317,1750279841226,-150.0,0.00021918,2]
[366477319,1750279841236,-152.0,0.00021918,2]
[366477321,1750279841247,-152.0,0.00021918,2]
[366477323,1750279841257,-152.0,0.00021918,2]
[366477325,1750279841266,-152.0,0.00021918,2]
[366477327,1750279841275,-152.67317097,0.00021918,2]
[366477329,1750279841284,-152.0,0.00021918,2]
[366477331,1750279841294,-152.0,0.00021918,2]
[366477332,1750279841303,-152.0,0.00021918,2]
[366477333,1750279841312,-152.0,0.00021918,2]
[366477334,1750279841321,-152.0,0.00021918,2]
[366477335,1750279841332,-152.0,0.00021918,2]
[366477336,1750279841341,-219.10366773,0.00021918,2]
[366477337,1750279841349,-152.0,0.00021918,2]
[366477338,1750279841358,-152.0,0.00021918,2]
[366477339,1750279841367,-152.0,0.00021918,2]
[366477340,1750279841376,-152.0,0.00021918,2]
[366477341,1750279841385,-152.0,0.00021918,2]
[366477342,1750279841394,-515.92157508,0.00021918,2]
[366477343,1750279841403,-224.171281,0.00021918,7]
[366477344,1750279841412,-224.171277,0.00021918,7]
[366477346,1750279841421,-181.08010149,0.00021918,2]
[366477348,1750279841430,-223.0315306,0.00021926,2]
[366477350,1750279841438,-248.81666278,0.00022,2]
[366477352,1750279841448,-500.0,0.00022,2]
[366477354,1750279841457,-252.8283286,0.00022,2]
[366477356,1750279841468,-247.1716714,0.00022,2]
[366477358,1750279841477,-1862.8283386,0.00022,30]
[366477364,1750279841524,-420.816,0.00022,30]
[366477896,1750279846745,-151.0,0.0002,2]
[366477898,1750279846755,-151.0,0.0002,2]
[366477900,1750279846765,-151.0,0.0002,2]
[366477902,1750279846774,-151.0,0.0002,2]
[366477904,1750279846783,-151.0,0.0002,2]
[366477906,1750279846792,-151.0,0.0002,2]
[366477908,1750279846802,-2546.87707611,0.00022,30]
[366477910,1750279846811,-159.06097,0.00022,2]
[366477912,1750279846821,-833.92080167,0.00022,30]
[366477914,1750279846831,-4000.0,0.00022,4]
[366477916,1750279846841,-500.0,0.00022073,2]
[366477918,1750279846851,-180.29615843,0.00022073,2]
[366477920,1750279846860,-500.0,0.00022073,2]
[366477922,1750279846869,-500.0,0.00022073,2]
[366477924,1750279846879,-500.0,0.00022073,2]
[366477926,1750279846888,-500.0,0.00022073,2]
[366477928,1750279846898,-500.0,0.00022073,2]
[366477930,1750279846907,-200.0,0.000221,2]
[366477932,1750279846917,-151.137373,0.000221,7]
[366477934,1750279846927,-151.137375,0.000221,7]
[366477936,1750279846936,-363934.63,0.000221,7]
[366477938,1750279846946,-161.150189,0.000221,7]
[366477940,1750279846955,-183.849256,0.000221,7]
[366477942,1750279846964,-151.0,0.000221,7]
[366477944,1750279846974,-151.0,0.000221,7]
[366477946,1750279846984,-246.641295,0.000221,7]
[366477948,1750279846993,-246.641296,0.000221,7]
[366477950,1750279847003,-151.0,0.000221,7]
[366477952,1750279847014,-833.92080167,0.000221,7]
[366477954,1750279847023,-233.1803532,0.0002211,2]
[366477956,1750279847033,-238.56,0.00022133,2]
[366477958,1750279847043,-410.76,0.00022134,2]
[366477960,1750279847052,-150.0,0.00022134,2]
[366477962,1750279847062,-2642.28783777,0.00022156,2]